bitfinex/quotes_ETHUSD_20251120
["timestamp","ask_amount","ask_price","bid_price","bid_amount"]
[1763659805452,2.53911949,2829.6,2828.1,7.52308806]
[1763659805453,0.4766,2829.6,2828.1,7.52308806]
[1763659805651,0.4766,2829.6,2828.3,0.405504]
[1763659805853,0.09143802,2829.2,2828.3,0.405504]
[1763659806068,0.09143802,2829.6,2828.9,30.0]
[1763659806270,1.20119687,2830.3,2828.2,0.90699264]
[1763659806271,1.80179531,2831.2,2830.1,0.1584]
[1763659806567,0.09143802,2831.6,2830.4,0.405504]
[1763659807286,0.09143802,2831.2,2830.2,0.94654099]
[1763659807574,0.09143802,2832.0,2830.5,2.25882749]
[1763659807785,0.55410843,2831.7,2830.8,0.405504]
[1763659807964,0.55410843,2831.7,2831.0,0.405504]
[1763659808270,0.09143802,2831.5,2830.6,0.94633085]
[1763659808577,0.55410843,2831.7,2830.4,1.31249664]
[1763659808759,0.002,2833.0,2830.9,1.31249664]
[1763659808954,0.55404586,2832.4,2831.4,1.31249664]
[1763659809148,0.55404586,2832.4,2831.9,0.405504]
[1763659809352,0.002,2833.0,2832.4,1.31249664]
[1763659809549,0.002,2833.2,2833.1,0.405504]
[1763659809752,0.002,2833.2,2833.1,1.34988779]
[1763659810072,0.002,2833.6,2833.1,1.80679664]
[1763659810375,0.002,2833.6,2833.2,0.899804]
[1763659810548,0.002,2833.6,2833.2,0.405504]
[1763659810749,0.002,2833.6,2832.8,1.03599264]
[1763659810963,0.002,2833.6,2832.8,0.129]
[1763659811274,0.002,2833.6,2832.9,0.405504]
[1763659811779,0.002,2833.6,2832.9,0.899804]
[1763659811954,0.002,2833.6,2832.9,7.92859206]
[1763659812152,0.002,2833.6,2833.1,0.405504]
[1763659812554,0.1986,2835.2,2832.9,7.52308806]
[1763659812555,0.1813,2835.6,2833.7,0.405504]
[1763659812748,0.1813,2835.6,2834.6,1.31249664]
[1763659812946,0.1813,2835.6,2834.6,0.405504]
[1763659813243,0.4545,2835.9,2834.6,0.534504]
[1763659813472,0.4545,2835.9,2835.1,0.405504]
[1763659813875,0.1813,2836.9,2835.3,0.405504]
[1763659814179,0.72723802,2836.9,2835.3,0.405504]
[1763659814353,0.72723802,2836.9,2835.5,1.31249664]
[1763659814354,0.6358,2836.9,2835.5,1.31249664]
[1763659814556,0.6358,2836.9,2836.0,1.31249664]
[1763659814982,0.09143802,2836.6,2835.9,0.405504]
[1763659815196,0.72723802,2837.3,2836.1,0.405504]
[1763659815601,0.1813,2836.2,2835.1,7.52308806]
[1763659815805,0.54593802,2836.1,2835.1,0.405504]
[1763659815960,0.09143802,2836.6,2835.6,1.31249664]
[1763659816165,0.6358,2837.3,2836.1,1.31249664]
[1763659816375,0.72723802,2837.3,2836.1,0.90699264]
[1763659816575,0.1813,2836.2,2835.2,7.52308806]
[1763659816794,0.1813,2836.2,2834.4,7.52308806]
[1763659817003,0.4545,2836.1,2834.9,7.52308806]
[1763659817172,0.27273802,2836.2,2835.0,0.90699264]
[1763659817173,0.1813,2836.2,2835.0,0.90699264]
[1763659817500,0.4545,2836.6,2835.2,7.52308806]
[1763659817685,0.4545,2836.6,2835.5,0.90699264]
[1763659817999,0.09143802,2836.7,2835.6,0.405504]
[1763659818160,0.1813,2837.3,2835.6,0.405504]
[1763659818161,0.1813,2837.3,2836.0,1.31249664]
[1763659818501,0.4545,2837.2,2836.3,0.405504]
[1763659818672,0.27273802,2837.3,2836.2,0.90699264]
[1763659818867,0.09143802,2837.0,2835.1,0.4943]
[1763659819063,0.09143802,2836.5,2835.6,0.90699264]
[1763659819285,0.1813,2837.3,2835.6,0.90699264]
[1763659819498,0.4545,2837.5,2836.2,0.405504]
[1763659819701,0.1813,2837.6,2835.2,0.4943]
[1763659819702,0.09143802,2837.0,2835.2,0.4943]
[1763659820004,0.405504,2837.4,2835.3,0.128]
[1763659820176,0.4545,2837.3,2835.7,7.52308806]
[1763659820501,0.09143802,2836.5,2835.2,7.52308806]
[1763659820805,0.4545,2837.3,2835.0,0.4943]
[1763659820806,0.4545,2837.3,2835.3,7.52308806]
[1763659821009,0.4545,2837.2,2835.0,0.6223]
[1763659821295,0.09143802,2836.0,2834.0,0.1807]
[1763659821505,0.09143802,2835.7,2834.1,0.6223]
[1763659821705,0.405504,2837.4,2835.0,7.52308806]
[1763659821867,0.4545,2836.8,2835.6,0.90699264]
[1763659822210,0.4545,2837.5,2835.7,0.405504]
[1763659822366,0.4545,2837.5,2836.1,1.31249664]
[1763659822712,0.4545,2837.5,2836.3,0.405504]
[1763659822867,0.4545,2837.5,2835.7,0.4943]
[1763659823197,0.09143802,2837.1,2836.0,0.405504]
[1763659823384,0.4545,2837.5,2836.0,0.405504]
[1763659823587,0.1843613,2838.7,2835.0,0.4943]
[1763659823588,0.4545,2837.4,2835.0,0.4943]
[1763659823787,0.09143802,2836.6,2835.1,0.533504]
[1763659823987,0.09143802,2836.3,2835.2,0.128]
[1763659824190,0.09143802,2835.9,2834.8,0.128]
[1763659824384,0.1813,2836.2,2834.9,7.55836267]
[1763659824592,0.1813,2836.2,2834.9,7.52308806]
[1763659824902,0.1813,2836.3,2835.1,0.405504]
[1763659825086,0.4545,2837.5,2835.5,1.31249664]
[1763659825290,0.4545,2837.4,2835.4,7.52308806]
[1763659825603,0.09143802,2836.4,2835.2,0.128]
[1763659825773,0.405504,2837.3,2835.2,0.128]
[1763659825973,0.7345375,2837.6,2835.2,0.128]
[1763659825974,0.27273802,2836.3,2835.2,0.128]
[1763659826417,0.4545,2836.6,2835.3,0.405504]
[1763659826588,0.54593802,2836.6,2835.3,0.405504]
[1763659826788,0.09143802,2836.2,2834.3,0.4943]
[1763659827001,5.04349664,2836.5,2833.5,0.675]
[1763659827209,0.1813,2836.1,2833.5,8.19808806]
[1763659827506,0.09143802,2835.4,2833.6,0.128]
[1763659827675,0.4545,2836.0,2833.8,7.52308806]
[1763659827877,0.09143802,2834.8,2833.6,0.128]
[1763659828212,0.09143802,2835.0,2833.6,0.128]
[1763659828378,0.4545,2835.9,2835.3,0.001]
[1763659829209,0.405504,2835.8,2835.0,0.001]
[1763659829407,0.09143802,2835.1,2835.0,0.001]
[1763659829579,0.1813,2834.8,2833.3,7.52308806]
[1763659829776,0.1813,2834.8,2833.3,7.98828806]
[1763659830011,3.52465861,2837.2,2833.9,0.90699264]
[1763659830012,0.189,2834.9,2833.9,0.90699264]
[1763659830186,0.492,2836.0,2834.0,0.533504]
[1763659830391,0.58343802,2835.9,2834.0,0.533504]
[1763659830592,0.09143802,2835.3,2834.0,0.533504]
[1763659830816,0.09143802,2835.7,2834.4,1.31249664]
[1763659831017,0.09143802,2835.3,2834.0,0.128]
[1763659831312,3.9123,2836.1,2834.0,0.128]
[1763659831313,0.492,2836.0,2834.4,0.405504]
[1763659831511,0.09143802,2835.6,2834.0,0.128]
[1763659831818,0.492,2836.0,2834.4,7.52308806]
[1763659832113,0.002,2837.5,2835.0,1.31249664]
[1763659832114,0.189,2836.5,2835.0,1.31249664]
[1763659832278,0.189,2836.5,2835.5,1.31249664]
[1763659833281,0.681,2836.5,2835.5,0.90699264]
[1763659833482,0.09143802,2836.4,2834.6,0.405504]
[1763659833681,0.09143802,2836.4,2835.0,1.31249664]
[1763659833682,0.492,2836.4,2835.0,1.31249664]
[1763659833932,0.09143802,2835.5,2834.7,0.128]
[1763659834094,0.492,2836.4,2834.7,0.128]
[1763659834337,0.09143802,2836.0,2834.8,0.405504]
[1763659834541,0.492,2836.3,2834.8,0.870704]
[1763659834816,0.492,2836.3,2834.8,1.31249664]
[1763659835383,0.09143802,2836.0,2834.9,0.128]
[1763659835581,0.09143802,2836.0,2834.8,0.128]
[1763659835781,0.09143802,2836.0,2834.8,1.03499264]
[1763659835997,0.58343802,2836.0,2834.9,0.405504]
[1763659836220,0.492,2836.0,2834.2,7.52308806]
[1763659836400,0.09143802,2835.4,2833.8,0.4652]
[1763659836727,0.09143802,2835.4,2834.2,7.52308806]
[1763659837031,0.189,2836.5,2835.0,0.405504]
[1763659837235,0.09143802,2836.5,2835.4,1.31249664]
[1763659837381,0.189,2836.5,2835.4,1.49449664]
[1763659837583,0.492,2837.0,2835.4,1.95969664]
[1763659837889,0.492,2837.0,2835.5,0.533504]
[1763659838084,0.09143802,2836.8,2835.5,0.128]
[1763659838284,0.09143802,2836.4,2835.5,0.128]
[1763659838481,0.1985,2836.3,2835.0,0.405504]
[1763659838801,0.1985,2836.3,2835.2,0.405504]
[1763659838983,0.4951,2836.4,2835.2,0.405504]
[1763659839502,0.1985,2836.5,2835.2,0.405504]
[1763659839815,0.4951,2836.9,2835.6,0.405504]
[1763659840185,0.58653802,2836.9,2835.8,0.405504]
[1763659840426,0.4951,2836.9,2835.5,0.92392706]
[1763659840634,0.4951,2836.9,2835.4,0.405504]
[1763659840786,0.09143802,2836.6,2835.4,1.31249664]
[1763659840982,0.09143802,2836.7,2835.4,1.31249664]
[1763659841223,0.4951,2836.8,2835.5,0.92392706]
[1763659841386,0.4951,2837.4,2835.9,1.32943106]
[1763659841600,0.4951,2837.4,2836.1,1.32943106]
[1763659841785,0.002,2837.5,2836.1,1.32943106]
[1763659841786,0.002,2837.5,2836.4,1.31249664]
[1763659841988,0.002,2837.5,2836.4,2.2364237]
[1763659842227,0.002,2837.5,2836.8,0.405504]
[1763659842403,0.002,2837.5,2836.9,1.05192706]
[1763659842720,0.002,2837.5,2836.9,0.128]
[1763659843142,0.002,2837.5,2836.8,0.92392706]
[1763659843283,0.002,2837.5,2836.1,1.05192706]
[1763659843284,0.58653802,2837.4,2836.1,1.05192706]
[1763659843485,0.09143802,2837.4,2836.2,0.405504]
[1763659843690,0.002,2837.5,2836.8,1.32943106]
[1763659843905,0.002,2837.5,2837.0,1.32943106]
[1763659844204,0.002,2837.5,2837.2,0.405504]
[1763659844403,0.002,2837.5,2837.0,0.92392706]
[1763659844724,0.002,2837.5,2837.0,0.405504]
[1763659844886,0.002,2837.5,2837.2,0.405504]
[1763659845088,0.002,2837.5,2837.1,0.92392706]
[1763659845344,0.002,2837.5,2837.0,0.405504]
[1763659845502,0.002,2837.5,2836.9,0.128]
[1763659845821,0.002,2837.5,2836.9,0.405504]
[1763659846040,0.002,2837.5,2836.9,1.79923106]
[1763659846533,0.002,2837.5,2836.8,1.05192706]
[1763659846735,0.002,2837.5,2836.9,0.92392706]
[1763659847042,0.002,2837.5,2836.8,0.92392706]
[1763659847333,0.002,2837.5,2836.6,2.13889539]
[1763659847334,0.4971,2837.5,2836.7,0.128]
[1763659847632,0.4951,2837.4,2836.3,0.92392706]
[1763659847829,0.002,2837.5,2836.2,1.23190275]
[1763659847830,0.002,2837.5,2836.4,7.55834401]
[1763659848037,0.002,2837.5,2836.8,0.405504]
[1763659848392,0.002,2837.5,2837.0,0.405504]
[1763659849933,0.4971,2837.5,2836.9,0.128]
[1763659850233,0.002,2837.5,2837.0,0.405504]
[1763659850432,0.002,2837.5,2836.9,0.92392706]
[1763659850634,0.002,2837.5,2837.0,0.533504]
[1763659850789,0.002,2837.5,2837.0,0.128]
[1763659851294,0.4971,2837.5,2836.6,0.9451305]
[1763659851498,0.09143802,2837.3,2836.4,0.128]
[1763659851722,7.52308806,2838.7,2836.4,0.128]
[1763659851723,0.09143802,2837.0,2836.4,0.128]
[1763659851925,0.09143802,2837.0,2836.2,0.128]
[1763659852196,0.09143802,2836.7,2835.6,0.128]
[1763659852394,0.09143802,2837.6,2835.7,0.4698]
[1763659852590,0.09143802,2837.1,2835.7,1.4149305]
[1763659852830,13.43628142,2838.6,2835.7,1.4149305]
[1763659852831,0.09143802,2837.7,2835.8,0.4698]
[1763659853025,2.18219336,2838.6,2835.8,0.4698]
[1763659853256,0.09143802,2837.0,2835.7,0.9451305]
[1763659853455,0.405504,2838.3,2835.8,0.03526341]
[1763659853655,0.09143802,2837.0,2835.7,0.5978]
[1763659853855,0.4951,2838.4,2836.1,0.9451305]
[1763659854040,0.4951,2838.3,2836.5,1.3506345]
[1763659854363,0.4951,2838.9,2836.9,1.3506345]
[1763659854565,0.4951,2838.9,2836.8,0.90699264]
[1763659854566,0.4951,2838.9,2837.3,0.405504]
[1763659854750,0.1985,2839.7,2837.5,0.405504]
[1763659855069,0.1985,2839.7,2837.4,1.0731305]
[1763659855070,0.4951,2839.1,2837.8,1.31249664]
[1763659855267,0.09143802,2838.8,2837.7,0.128]
[1763659855569,0.09143802,2838.5,2837.5,0.533504]
[1763659855936,0.4951,2838.7,2837.5,0.533504]
[1763659856264,0.58653802,2838.7,2837.5,0.533504]
[1763659856477,0.09143802,2838.8,2837.5,1.003304]
[1763659856653,0.4951,2839.1,2837.5,1.003304]
[1763659856961,0.189,2839.2,2837.5,1.003304]
[1763659856962,0.09143802,2838.9,2837.7,1.31249664]
[1763659857132,0.4951,2839.1,2837.7,0.405504]
[1763659857330,0.09143802,2839.0,2837.6,0.875304]
[1763659857654,0.189,2839.2,2837.6,0.875304]
[1763659857655,0.09143802,2838.7,2837.6,0.405504]
[1763659857860,0.4951,2838.9,2837.6,0.405504]
[1763659858171,0.09143802,2838.7,2837.6,0.405504]
[1763659858472,0.4951,2838.8,2837.3,0.128]
[1763659858669,0.4951,2838.7,2837.4,0.405504]
[1763659858881,0.09143802,2838.6,2837.4,0.405504]
[1763659859269,0.189,2839.2,2837.3,0.533504]
[1763659859270,0.09143802,2838.3,2837.3,0.128]
[1763659859939,0.58653802,2838.3,2837.3,0.128]
[1763659860334,0.58653802,2838.3,2836.8,0.4698]
[1763659860532,0.09143802,2838.0,2836.8,0.4698]
[1763659860787,0.4951,2838.3,2836.9,0.03524974]
[1763659861084,0.4951,2838.3,2837.1,0.405504]
[1763659861394,0.09143802,2838.2,2837.1,0.405504]
[1763659861550,0.4951,2838.3,2837.1,0.405504]
[1763659861934,0.58653802,2838.3,2836.8,0.94353526]
[1763659862134,0.594504,2839.2,2836.9,1.41333526]
[1763659862135,0.4951,2838.8,2836.9,1.41333526]
[1763659862337,0.4951,2838.8,2837.1,0.405504]
[1763659862535,0.09143802,2838.5,2837.1,0.405504]
[1763659862771,0.4951,2838.4,2837.1,0.533504]
[1763659863076,0.4951,2838.4,2837.1,1.94830504]
[1763659863489,0.09143802,2838.1,2836.8,0.94500104]
[1763659863638,0.09143802,2837.7,2836.8,1.07300104]
[1763659863834,0.09143802,2837.4,2836.4,0.94500104]
[1763659864074,0.1904,2836.5,2835.5,0.94500104]
[1763659864273,0.1904,2836.5,2835.4,1.07300104]
[1763659864446,0.90699264,2837.7,2835.6,0.94600104]
[1763659864645,0.4951,2837.2,2835.8,1.85199368]
[1763659864847,0.4951,2837.2,2836.0,0.94500104]
[1763659865050,0.4951,2837.2,2835.8,0.94500104]
[1763659865051,0.09143802,2837.0,2835.8,0.94500104]
[1763659865250,0.4951,2837.2,2835.9,0.3222]
[1763659865546,0.4951,2837.2,2835.6,1.23290275]
[1763659865547,0.09143802,2836.4,2835.6,0.001]
[1763659865747,0.09143802,2836.2,2835.6,0.001]
[1763659866075,0.09143802,2837.0,2835.9,0.405504]
[1763659866291,0.09143802,2837.0,2835.9,1.44049664]
[1763659866581,0.4951,2837.3,2836.1,0.405504]
[1763659866765,0.4951,2837.5,2835.9,1.97999368]
[1763659867072,0.4951,2837.5,2836.0,0.875304]
[1763659867481,0.4951,2837.5,2836.0,0.405504]
[1763659867814,0.1904,2837.6,2836.1,0.5978]
[1763659868013,0.1904,2837.9,2837.0,0.405504]
[1763659868151,0.1904,2837.8,2837.1,0.94500104]
[1763659868463,0.686,2837.8,2836.0,0.94500104]
[1763659868668,0.09143802,2836.9,2835.9,0.405504]
[1763659868883,0.58703802,2836.9,2835.9,0.405504]
[1763659869252,0.58703802,2836.9,2835.8,0.128]
[1763659869454,0.55317186,2836.7,2835.6,0.001]
[1763659869664,0.1938,2835.7,2835.6,0.001]
[1763659869953,0.09143802,2835.5,2834.6,0.001]
[1763659870178,0.09143802,2834.7,2834.6,0.001]
[1763659870377,0.09143802,2834.5,2832.9,1.13260104]
[1763659870579,0.09143802,2833.9,2832.8,6.30070222]
[1763659870810,0.4956,2834.7,2832.9,0.4742]
[1763659871110,0.09143802,2833.8,2832.8,0.128]
[1763659871412,0.09143802,2833.2,2832.1,0.3156]
[1763659871701,0.4956,2833.7,2831.4,0.1876]
[1763659871702,0.28103802,2832.9,2831.4,0.3156]
[1763659871859,0.28103802,2832.9,2831.2,0.4742]
[1763659871860,0.1896,2832.9,2831.2,0.4742]
[1763659872053,0.09143802,2832.4,2831.2,0.4742]
[1763659872381,0.09143802,2832.1,2831.0,6.30070222]
[1763659872598,0.4956,2832.7,2830.8,0.6022]
[1763659872759,0.09143802,2833.2,2831.6,0.90699264]
[1763659873109,0.405504,2833.0,2831.1,0.128]
[1763659873258,0.09143802,2832.3,2831.1,0.6022]
[1763659873600,0.4956,2832.9,2831.1,0.6022]
[1763659873779,0.4956,2832.9,2831.4,0.90699264]
[1763659873984,0.09143802,2832.2,2831.2,0.6022]
[1763659874359,0.09143802,2832.0,2831.0,0.128]
[1763659874706,0.90699264,2833.2,2830.1,0.4752]
[1763659874707,0.6894,2831.9,2830.1,0.4752]
[1763659874992,0.09143802,2831.2,2830.1,0.4752]
[1763659875153,0.4956,2831.4,2830.1,0.4752]
[1763659875361,0.405504,2831.7,2830.1,0.001]
[1763659875556,0.405504,2831.4,2830.1,0.001]
[1763659875756,0.09143802,2830.2,2830.1,0.001]
[1763659876304,0.4956,2830.2,2830.1,0.001]
[1763659876605,0.58703802,2830.2,2830.1,0.001]
[1763659876909,0.405504,2829.9,2827.6,0.1876]
[1763659877056,0.4956,2829.8,2827.4,0.4742]
[1763659877260,0.09143802,2829.1,2827.6,0.90699264]
[1763659877489,0.09143802,2829.4,2827.7,0.6618]
[1763659877664,0.09143802,2829.2,2827.8,0.4742]
[1763659877860,0.4956,2829.7,2827.7,0.1876]
[1763659878058,0.09143802,2829.1,2827.8,0.4742]
[1763659878258,0.405504,2829.8,2827.2,0.1876]
[1763659878565,0.405504,2829.8,2827.3,0.4742]
[1763659878566,0.405504,2829.7,2827.3,0.4742]
[1763659879005,0.1896,2830.0,2827.3,0.4742]
[1763659879006,0.09143802,2829.0,2827.6,6.17270222]
[1763659879299,0.09143802,2828.7,2827.7,0.90699264]
[1763659879655,0.55470611,2828.5,2827.7,0.90699264]
[1763659879857,0.09143802,2828.4,2827.7,0.90699264]
[1763659880091,0.09143802,2828.1,2827.3,0.4742]
[1763659880292,0.09143802,2828.1,2827.2,0.3156]
[1763659880467,0.09143802,2828.1,2827.2,0.128]
[1763659880669,0.09143802,2827.8,2826.3,0.6618]
[1763659880973,0.4956,2828.1,2826.4,6.17270222]
[1763659880974,0.09143802,2827.6,2826.4,6.17270222]
[1763659881178,0.55470611,2828.5,2826.0,0.1876]
[1763659881179,0.09143802,2827.1,2826.0,0.1876]
[1763659881479,0.4956,2828.0,2826.1,0.50958445]
[1763659881780,0.4956,2828.0,2826.3,6.17270222]
[1763659881968,0.09143802,2827.7,2826.4,0.90699264]
[1763659882169,0.6852,2828.7,2826.9,0.90699264]
[1763659882369,0.4956,2829.3,2827.5,0.001]
[1763659882785,0.4956,2829.2,2827.9,1.31249664]
[1763659882988,0.09143802,2828.8,2827.9,0.90699264]
[1763659883174,0.4956,2829.2,2827.6,0.128]
[1763659883375,0.09143802,2828.8,2827.5,0.001]
[1763659883704,0.09143802,2829.1,2827.6,0.4742]
[1763659883902,0.09143802,2829.1,2827.5,0.001]
[1763659883903,0.09143802,2828.5,2827.5,0.001]
[1763659884201,0.09143802,2828.3,2827.5,0.001]
[1763659884404,0.4956,2828.8,2827.5,0.001]
[1763659884563,0.405504,2829.3,2827.5,0.4752]
[1763659884762,0.4956,2829.4,2827.6,6.70620622]
[1763659884986,0.09143802,2828.8,2827.8,0.405504]
[1763659885183,0.09143802,2829.6,2828.2,1.31249664]
[1763659885415,0.4956,2829.7,2828.2,1.31249664]
[1763659885591,0.1896,2830.0,2828.3,0.6618]
[1763659885592,0.4956,2829.9,2828.3,0.6618]
[1763659885793,0.4956,2829.9,2827.5,0.001]
[1763659885794,0.09143802,2829.0,2827.9,0.6618]
[1763659886007,0.09143802,2829.7,2828.2,1.31249664]
[1763659886208,0.4956,2829.9,2828.2,1.78669664]
[1763659886209,0.09143802,2829.4,2828.2,1.78669664]
[1763659886418,0.4956,2829.9,2828.3,0.6022]
[1763659886583,0.09143802,2829.4,2828.4,0.405504]
[1763659886988,0.09143802,2829.4,2828.4,0.879704]
[1763659887196,0.1896,2830.0,2827.9,0.1876]
[1763659887197,0.09143802,2829.1,2827.9,0.1876]
[1763659887375,0.4956,2829.3,2827.8,0.6022]
[1763659887886,0.4956,2829.3,2827.8,0.128]
[1763659888089,0.4956,2829.3,2827.9,0.4742]
[1763659888311,0.4956,2829.8,2828.3,1.31249664]
[1763659888613,0.1,2829.4,2828.3,1.31249664]
[1763659888798,0.1,2829.4,2828.3,0.90699264]
[1763659888984,0.1896,2830.0,2828.1,0.1876]
[1763659889316,0.1896,2830.0,2828.2,0.879704]
[1763659889317,0.1,2829.5,2828.2,0.879704]
[1763659889618,0.6546368,2829.2,2828.2,0.879704]
[1763659889776,0.5546368,2829.2,2828.4,0.90699264]
[1763659890509,0.1,2828.8,2827.7,0.1907]
[1763659890707,0.5546368,2829.2,2827.5,0.4863]
[1763659890708,0.756604,2829.1,2827.5,0.001]
[1763659891005,0.1,2828.2,2827.5,0.001]
[1763659891207,0.5546368,2829.2,2827.6,0.676]
[1763659891412,0.1,2828.9,2827.6,0.1907]
[1763659891581,0.5546368,2829.2,2827.7,0.4853]
[1763659891582,0.1,2828.8,2827.7,0.4853]
[1763659891782,0.1,2828.5,2827.6,1.09769264]
[1763659891996,0.1,2828.5,2827.6,0.1907]
[1763659892211,0.5546368,2829.2,2828.0,6.17270222]
[1763659892212,0.6546368,2829.2,2828.0,6.17270222]
[1763659892513,0.1,2828.6,2827.7,0.4853]
[1763659892876,0.1,2828.5,2827.6,0.1907]
[1763659893079,0.1,2828.2,2827.5,0.001]
[1763659893290,0.1,2827.6,2827.5,0.001]
[1763659893916,0.883104,2827.6,2827.5,0.001]
[1763659894280,0.883104,2827.6,2824.5,0.69796113]
[1763659894281,0.188,2827.1,2825.1,6.17270222]
[1763659894613,0.188,2827.1,2824.4,0.18491939]
[1763659894614,0.1,2825.9,2825.0,0.128]
[1763659894818,0.1,2825.9,2824.6,0.4853]
[1763659894975,0.43186846,2826.5,2825.2,6.17270222]
[1763659895180,0.1,2827.0,2825.8,0.90699264]
[1763659895514,0.3776,2827.2,2825.8,0.90699264]
[1763659895808,0.1,2826.7,2825.8,0.90699264]
[1763659895994,0.1,2825.4,2824.0,0.4863]
[1763659896174,0.1,2825.7,2824.4,0.4853]
[1763659896376,0.83514404,2826.9,2825.1,6.17270222]
[1763659896575,0.1,2826.6,2825.2,1.71099264]
[1763659896778,0.188,2827.1,2825.2,1.71099264]
[1763659896779,0.188,2827.1,2825.7,0.90699264]
[1763659897075,0.188,2827.1,2825.3,0.4853]
[1763659897076,0.1,2826.8,2825.5,0.4853]
[1763659897280,0.3776,2827.0,2825.3,0.4853]
[1763659897517,0.1,2826.8,2825.3,0.4853]
[1763659897724,0.1,2826.8,2825.2,0.1907]
[1763659897725,0.1,2826.2,2825.2,0.1907]
[1763659897935,0.405504,2826.7,2825.2,0.1907]
[1763659897936,0.1,2825.9,2825.2,0.1907]
[1763659898234,0.405504,2826.7,2825.2,0.1907]
[1763659898235,0.783104,2826.7,2825.2,0.1907]
[1763659898439,0.1,2826.2,2825.2,0.6878]
[1763659898641,0.1,2826.5,2825.3,0.405504]
[1763659898807,0.1,2826.6,2825.2,0.1907]
[1763659898991,0.3776,2827.0,2825.2,0.1907]
[1763659898992,0.1,2827.0,2825.5,1.31249664]
[1763659899197,0.55514813,2826.5,2825.5,1.31249664]
[1763659899521,0.55514813,2826.5,2825.7,0.405504]
[1763659899725,0.55514813,2826.5,2825.7,0.902604]
[1763659900310,0.188,2827.1,2825.2,0.1907]
[1763659900311,0.3776,2826.9,2825.2,0.1907]
[1763659900511,0.1,2826.4,2825.2,0.6878]
[1763659900713,0.1,2826.7,2825.3,1.31249664]
[1763659900913,0.1,2826.9,2825.4,0.4971]
[1763659901142,0.1,2826.6,2825.5,0.405504]
[1763659901300,0.1,2826.6,2825.5,1.030604]
[1763659901499,0.3776,2826.5,2825.1,0.001]
[1763659901741,0.405504,2826.4,2825.1,0.001]
[1763659901907,0.1,2825.7,2825.1,0.001]
[1763659902106,0.1,2825.6,2825.1,0.001]
[1763659902309,0.1,2825.4,2825.1,0.001]
[1763659902513,0.1,2825.6,2825.1,0.001]
[1763659902729,0.3776,2826.1,2825.1,0.001]
[1763659902730,0.783104,2826.1,2825.1,0.001]
[1763659902942,0.1,2825.6,2825.1,0.001]
[1763659903149,0.1,2825.4,2825.1,0.001]
[1763659903301,0.1,2825.5,2825.1,0.001]
[1763659903929,0.3776,2825.4,2825.1,0.001]
[1763659904126,0.1,2825.2,2825.1,0.001]
[1763659904338,0.55530625,2825.5,2825.1,0.001]
[1763659904549,0.1,2825.2,2825.1,0.001]
[1763659904852,0.4776,2825.2,2825.1,0.001]
[1763659905452,0.505504,2825.2,2824.6,0.001]
[1763659905648,0.1948,2824.7,2824.6,0.001]
[1763659906114,0.1948,2824.7,2824.0,0.001]
[1763659906115,0.405504,2824.6,2824.0,0.001]
[1763659906318,0.405504,2824.6,2823.5,0.001]
[1763659906319,0.1,2824.1,2823.5,0.001]
[1763659906625,0.505504,2823.9,2823.5,0.001]
[1763659906814,0.1,2823.6,2823.5,0.001]
[1763659907016,0.17848966,2824.5,2823.5,0.001]
[1763659907225,0.1,2824.5,2823.5,0.001]
[1763659907434,0.71596693,2825.0,2823.5,0.001]
[1763659907435,0.0928,2823.6,2823.5,0.001]
[1763659907639,0.1,2823.6,2823.5,0.001]
[1763659907844,6.17270222,2824.9,2823.5,0.001]
[1763659907845,0.0928,2823.7,2823.5,0.001]
[1763659908163,0.1,2823.6,2823.5,0.001]
[1763659908441,0.4756,2823.6,2823.5,0.001]
[1763659908642,0.0928,2824.2,2823.5,0.001]
[1763659908801,1.48082438,2825.5,2823.5,0.001]
[1763659908802,0.0928,2824.7,2823.5,0.001]
[1763659909137,3.9149763,2825.4,2823.5,0.001]
[1763659909335,0.1,2823.8,2823.5,0.001]
[1763659909705,0.1,2823.6,2823.5,0.001]
[1763659909940,0.505504,2823.6,2823.5,0.001]
[1763659910144,0.781104,2823.6,2823.5,0.001]
[1763659910349,0.881104,2823.6,2823.5,0.001]
[1763659910856,0.1,2823.1,2823.0,0.001]
[1763659911017,0.405504,2824.0,2823.0,0.001]
[1763659911226,0.781104,2824.0,2823.0,0.001]
[1763659911520,1.68809664,2824.0,2823.0,0.001]
[1763659911716,0.1,2823.1,2823.0,0.001]
[1763659911917,0.405504,2824.0,2823.0,0.001]
[1763659911918,0.4684,2824.1,2823.0,0.001]
[1763659912129,0.1,2823.3,2823.0,0.001]
[1763659912329,0.1,2823.2,2823.0,0.001]
[1763659912532,0.3756,2823.3,2823.0,0.001]
[1763659912533,0.1,2823.1,2823.0,0.001]
[1763659912849,0.505504,2823.1,2823.0,0.001]
[1763659913022,0.405504,2823.3,2823.0,0.001]
[1763659913357,0.4684,2824.1,2823.0,0.001]
[1763659913536,0.1,2823.4,2823.0,0.001]
[1763659914141,0.1,2823.1,2823.0,0.001]
[1763659916642,0.505504,2823.1,2823.0,0.001]
[1763659916843,0.405504,2823.0,2822.7,0.001]
[1763659917045,0.405504,2822.8,2822.7,0.001]
[1763659917232,0.505504,2822.8,2822.7,0.001]
[1763659917412,0.881104,2822.8,2822.7,0.001]
[1763659918316,0.1,2822.8,2822.7,0.001]
[1763659918750,0.881104,2822.8,2822.7,0.001]
[1763659919047,0.3756,2823.2,2822.7,0.001]
[1763659919222,0.1,2822.8,2822.7,0.001]
[1763659919762,0.505504,2822.8,2822.7,0.001]
[1763659919962,0.881104,2822.8,2822.7,0.001]